bitfinex/quotes_SOLUSD_20240816
["timestamp","ask_amount","ask_price","bid_price","bid_amount"]
[1723792704868,6.9257,144.39,144.35,10.39281601]
[1723792705174,6.9257,144.39,144.36,10.99917728]
[1723792705353,7.17628,144.4,144.37,2.080304]
[1723792705551,0.12549,144.39,144.38,2.080304]
[1723792705875,7.05119,144.39,144.36,6.47727937]
[1723792706065,0.12549,144.39,144.35,2.44154668]
[1723792706573,0.12549,144.39,144.35,8.91906603]
[1723792706744,0.12549,144.39,144.34,8.91906603]
[1723792706943,0.12549,144.39,144.35,8.91906603]
[1723792707139,0.12549,144.39,144.34,8.91913939]
[1723792707344,0.12549,144.39,144.35,26.47751935]
[1723792707561,0.12549,144.39,144.35,28.91913939]
[1723792707765,0.12549,144.39,144.35,26.9275]
[1723792707966,0.12549,144.39,144.35,35.84663939]
[1723792708175,0.12549,144.39,144.35,26.9275]
[1723792708366,0.12549,144.39,144.35,33.40501935]
[1723792709782,0.12549,144.39,144.36,2.08026139]
[1723792709955,0.12549,144.39,144.37,2.08026139]
[1723792710157,25.3601,144.38,144.34,8.91913939]
[1723792710387,10.32,144.36,144.35,2.080311]
[1723792710891,10.32,144.36,144.35,2.08045175]
[1723792712480,25.3601,144.38,144.34,6.9278]
[1723792712788,25.3601,144.38,144.35,2.08043036]
[1723792713090,25.3601,144.38,144.34,6.9278]
[1723792713297,25.3601,144.38,144.35,2.08043165]
[1723792713490,25.3601,144.38,144.34,6.9278]
[1723792713810,32.2862,144.38,144.34,6.9278]
[1723792713960,25.3601,144.38,144.35,2.08043241]
[1723792714164,25.3601,144.38,144.34,6.9278]
[1723792714390,25.3601,144.38,144.35,2.08043179]
[1723792714593,25.3601,144.38,144.34,6.9278]
[1723792714771,25.3601,144.38,144.35,2.08043241]
[1723792714977,25.3601,144.38,144.34,6.9278]
[1723792715292,25.3601,144.38,144.35,2.08043089]
[1723792715463,25.3601,144.38,144.34,6.9278]
[1723792716363,32.2863,144.38,144.33,6.9284]
[1723792716563,10.32,144.36,144.3,7.20048182]
[1723792716881,25.3601,144.38,144.33,26.9285]
[1723792717965,32.2863,144.38,144.33,26.9285]
[1723792718391,10.32,144.36,144.31,2.08066035]
[1723792718600,10.32,144.36,144.32,2.08066035]
[1723792718894,10.57098,144.37,144.33,9.00911824]
[1723792719083,10.57098,144.37,144.33,6.9285]
[1723792719612,10.57098,144.37,144.33,9.00911624]
[1723792719903,10.57098,144.37,144.33,6.9285]
[1723792720101,10.57098,144.37,144.33,9.00909353]
[1723792720393,17.49768,144.37,144.32,9.00959353]
[1723792720778,17.49768,144.37,144.32,6.929]
[1723792720979,10.44549,144.37,144.33,9.00896186]
[1723792721198,17.37209,144.37,144.32,9.00946186]
[1723792721606,17.37209,144.37,144.33,6.9285]
[1723792721894,17.37209,144.37,144.33,2.08056186]
[1723792721895,10.44549,144.37,144.33,2.08056186]
[1723792722096,10.44549,144.37,144.32,2.08056186]
[1723792722302,17.37219,144.37,144.32,2.08056186]
[1723792722472,17.37219,144.37,144.32,9.00916186]
[1723792722668,17.37219,144.37,144.32,9.00923191]
[1723792723278,17.37219,144.37,144.32,6.9286]
[1723792723968,0.12549,144.37,144.33,6.9285]
[1723792724169,10.32,144.36,144.33,6.9285]
[1723792724472,0.12549,144.37,144.33,6.9285]
[1723792724696,32.41179,144.38,144.33,6.9285]
[1723792725581,15.16559,144.38,144.34,6.928]
[1723792725788,25.48559,144.38,144.34,6.928]
[1723792726500,15.0401,144.38,144.35,6.9274]
[1723792726708,25.3601,144.38,144.35,6.9274]
[1723792727297,15.0401,144.38,144.35,6.9274]
[1723792727498,25.3601,144.38,144.35,6.9274]
[1723792728003,25.3601,144.38,144.34,26.9279]
[1723792728407,32.2863,144.38,144.34,26.9279]
[1723792728575,25.3601,144.38,144.34,26.9279]
[1723792729110,6.9253,144.4,144.35,6.9272]
[1723792729309,10.32,144.39,144.35,6.9272]
[1723792730184,17.2459,144.39,144.34,26.9279]
[1723792730780,22.1747,144.42,144.32,2.08040254]
[1723792730781,1.98265329,144.38,144.32,2.08040254]
[1723792730978,10.32,144.35,144.33,6.9285]
[1723792731325,10.32,144.37,144.34,6.928]
[1723792731678,7.05129,144.39,144.34,6.928]
[1723792731679,6.9261,144.38,144.34,6.928]
[1723792731880,10.32,144.37,144.34,6.928]
[1723792733506,6.9261,144.38,144.34,6.928]
[1723792733811,10.32,144.37,144.34,6.928]
[1723792734001,10.32,144.37,144.31,2.08058865]
[1723792734002,10.32,144.35,144.31,6.9292]
[1723792734324,10.44549,144.33,144.28,2.08058865]
[1723792734492,17.37399,144.33,144.28,9.01118865]
[1723792734712,17.37399,144.33,144.28,6.9306]
[1723792736213,17.2485,144.33,144.28,26.9306]
[1723792736426,7.05359,144.34,144.29,6.9303]
[1723792736620,17.37359,144.34,144.29,6.9303]
[1723792737282,7.05359,144.34,144.29,6.9303]
[1723792737783,17.37359,144.34,144.29,6.9303]
[1723792739095,10.32,144.32,144.28,6.9308]
[1723792740412,17.249,144.32,144.28,6.9308]
[1723792740820,0.12549,144.35,144.25,9.27992029]
[1723792740821,8.78760667,144.31,144.25,9.27992029]
[1723792740989,12.05272239,144.3,144.26,6.9317]
[1723792741186,18.98272239,144.3,144.26,6.9317]
[1723792741515,12.05272239,144.3,144.26,6.9317]
[1723792742086,18.98272239,144.3,144.26,6.9317]
[1723792742312,17.25,144.3,144.26,6.9317]
[1723792743256,10.32,144.28,144.24,6.9327]
[1723792743397,1.73302136,144.27,144.24,6.9327]
[1723792746105,1.73303249,144.26,144.23,6.9332]
[1723792746406,6.9315,144.27,144.23,6.9332]
[1723792746809,6.9315,144.27,144.21,15.0358]
[1723792747352,6.9319,144.26,144.21,6.9342]
[1723792747519,17.2519,144.26,144.21,6.9342]
[1723792748211,10.32,144.24,144.21,6.9342]
[1723792748631,7.18258,144.27,144.22,6.9335]
[1723792748942,17.37709,144.27,144.23,20.0]
[1723792749156,6.9316,144.27,144.21,20.0]
[1723792749351,6.9316,144.27,144.22,45.0]
[1723792749714,17.2511,144.28,144.23,6.9333]
[1723792750031,6.9315,144.27,144.23,6.9333]
[1723792750234,17.2515,144.27,144.23,6.9333]
[1723792750421,18.98464979,144.27,144.23,6.9333]
[1723792751733,10.32,144.25,144.22,6.9337]
[1723792755329,0.12549,144.29,144.23,26.9333]
[1723792755330,17.2515,144.27,144.23,26.9333]
[1723792758627,7.05749,144.26,144.22,6.9337]
[1723792759940,10.32,144.27,144.23,26.9331]
[1723792761040,17.2515,144.27,144.23,26.9331]
[1723792762258,6.9311,144.28,144.23,26.9331]
[1723792763672,16.3546,144.3,144.19,37.55995139]
[1723792763673,23.2849,144.3,144.25,26.9323]
[1723792763878,17.2499,144.31,144.26,51.9318]
[1723792766848,6.9301,144.3,144.26,51.9318]
[1723792767245,6.9301,144.3,144.26,45.0]
[1723792767453,6.9301,144.3,144.25,26.9322]
[1723792767944,17.2506,144.29,144.25,6.9322]
[1723792768754,17.2506,144.29,144.24,6.9327]
[1723792769461,1.73296055,144.28,144.24,6.9327]
[1723792769672,8.66396055,144.28,144.24,6.9327]
[1723792769877,6.931,144.28,144.24,6.9327]
[1723792770453,8.66404728,144.28,144.24,6.9327]
[1723792770672,10.32,144.27,144.24,6.9327]
[1723792772785,10.32,144.27,144.22,6.9337]
[1723792772980,17.2515,144.27,144.22,6.9337]
[1723792774446,17.2515,144.27,144.23,20.0]
[1723792775464,6.932,144.26,144.23,20.0]
[1723792775664,10.44549,144.25,144.21,6.9341]
[1723792776167,10.32,144.25,144.21,6.9341]
[1723792776869,17.252,144.26,144.22,6.9337]
[1723792780274,10.32,144.26,144.22,6.9337]
[1723792780770,10.32,144.26,144.22,26.9337]
[1723792781698,10.32,144.26,144.23,2.08227765]
[1723792781999,10.32,144.26,144.22,26.9337]
[1723792782292,10.32,144.26,144.23,2.08227765]
[1723792782496,10.32,144.26,144.22,26.9337]
[1723792782804,10.32,144.26,144.23,2.08227765]
[1723792782978,17.2519,144.26,144.22,26.9337]
[1723792783169,17.2519,144.26,144.23,2.08229197]
[1723792783391,17.2519,144.26,144.22,26.9337]
[1723792783567,17.2519,144.26,144.23,2.08229197]
[1723792783893,17.2519,144.26,144.22,6.9337]
[1723792784104,17.2519,144.26,144.23,2.08233686]
[1723792784271,17.2519,144.26,144.22,6.9337]
[1723792784470,17.2519,144.26,144.23,2.08233748]
[1723792784671,17.2519,144.26,144.24,2.08233748]
[1723792784981,17.2519,144.26,144.22,26.9337]
[1723792785295,17.2519,144.26,144.23,8.565841]
[1723792785500,6.9337,144.23,144.21,10.41145678]
[1723792785672,10.32,144.24,144.22,2.08233996]
[1723792785875,17.2532,144.24,144.2,13.0034]
[1723792786205,8.66726007,144.23,144.21,8.56694483]
[1723792786494,8.66726007,144.23,144.22,2.0825654]
[1723792786695,8.79275007,144.23,144.19,10.55848657]
[1723792786898,8.79275007,144.23,144.2,11.0128894]
[1723792787105,7.05919,144.23,144.21,2.08266301]
[1723792787393,7.05919,144.23,144.2,2.44554947]
[1723792787602,7.05919,144.23,144.18,26.9357]
[1723792787787,7.05919,144.23,144.19,19.48816039]
[1723792788103,7.05919,144.23,144.2,8.92995326]
[1723792788275,7.05919,144.23,144.21,6.4845002]
[1723792788472,7.05919,144.23,144.2,2.44545099]
[1723792788670,0.12549,144.23,144.21,6.48449789]
[1723792788879,10.32,144.25,144.22,6.48406977]
[1723792789082,17.2527,144.25,144.2,26.9347]
[1723792789404,6.933,144.24,144.21,6.48421072]
[1723792789616,6.933,144.24,144.2,26.9347]
[1723792789776,6.933,144.24,144.21,6.48449139]
[1723792790105,6.933,144.24,144.2,26.9347]
[1723792790405,6.933,144.24,144.21,6.48421303]
[1723792790594,6.933,144.24,144.2,26.9347]
[1723792790813,6.933,144.24,144.21,6.48421303]
[1723792790995,6.933,144.24,144.2,26.9347]
[1723792791169,6.9303,144.3,144.25,6.9322]
[1723792791373,10.32,144.31,144.25,6.9322]
[1723792791612,6.9305,144.29,144.24,10.55529376]
[1723792791773,6.931,144.28,144.23,6.9332]
[1723792791969,6.931,144.28,144.24,6.48307142]
[1723792792176,17.2514,144.27,144.23,6.9332]
[1723792792407,17.2514,144.27,144.24,6.48310906]
[1723792792607,17.2514,144.27,144.23,19.93352287]
[1723792792801,17.2514,144.27,144.24,6.48309222]
[1723792792996,17.2514,144.27,144.22,10.55570848]
[1723792792997,0.12549,144.26,144.22,6.9337]
[1723792793196,0.12549,144.26,144.23,6.48365996]
[1723792793384,0.12549,144.26,144.23,6.9332]
[1723792793704,17.2514,144.27,144.23,6.9332]
[1723792794503,10.32,144.27,144.23,6.9332]
[1723792794675,6.9314,144.27,144.22,10.55653685]
[1723792794884,7.05739,144.26,144.23,6.48320475]
[1723792795082,17.2519,144.26,144.22,6.9336]
[1723792795381,17.2519,144.26,144.23,6.48370116]
[1723792795583,17.2519,144.26,144.22,17.4903276]
[1723792795785,17.2519,144.26,144.23,6.48359876]
[1723792796096,17.2519,144.26,144.22,17.49038942]
[1723792796302,10.32,144.26,144.23,6.48363753]
[1723792796500,10.32,144.26,144.22,6.9336]
[1723792797314,17.252,144.26,144.21,6.9342]
[1723792797506,17.252,144.26,144.22,8.92888134]
[1723792797678,17.252,144.26,144.21,6.9342]
[1723792798013,17.252,144.26,144.22,11.01125968]
[1723792798334,17.252,144.26,144.23,2.08237834]
[1723792798483,17.252,144.26,144.22,2.44507191]
[1723792798815,1.73331411,144.25,144.23,2.08237785]
[1723792798979,7.05789,144.25,144.22,2.4450735]
[1723792799178,8.79132842,144.25,144.21,6.9342]
[1723792799392,7.05789,144.25,144.22,2.08250744]
[1723792799593,7.05789,144.25,144.21,6.9342]
[1723792799918,6.9324,144.25,144.22,8.56641463]
[1723792800099,6.9324,144.25,144.23,2.08248521]
[1723792800300,17.50298,144.26,144.21,6.9342]
[1723792800504,0.12549,144.25,144.22,8.56628505]
[1723792800709,1.85883701,144.25,144.23,2.08242398]
[1723792801028,17.2532,144.24,144.2,4.32268709]
[1723792801205,0.12549,144.23,144.21,11.01180856]
[1723792801523,7.05879,144.23,144.22,2.08249278]
[1723792801731,7.05879,144.23,144.18,10.4118917]
[1723792801732,6.9346,144.21,144.18,10.4118917]
[1723792801888,6.9346,144.21,144.19,8.56808855]
[1723792802089,0.12549,144.23,144.2,2.08287072]
[1723792802407,6.2074,144.26,144.2,20.0]
[1723792802619,0.12549,144.25,144.21,9.0167689]
[1723792802918,17.252,144.26,144.22,2.082583]
[1723792803221,17.252,144.26,144.21,6.9341]
[1723792803431,17.252,144.26,144.2,20.0]
[1723792803432,17.252,144.26,144.22,6.9338]
[1723792803720,6.933,144.24,144.2,26.9347]
[1723792804025,6.9325,144.25,144.2,20.0]
[1723792804321,17.252,144.26,144.21,6.9342]
[1723792804691,6.9325,144.25,144.21,6.9342]
[1723792805026,6.9325,144.25,144.2,6.9344]
[1723792805326,7.05839,144.24,144.2,6.9344]
[1723792805497,8.79184587,144.24,144.2,6.9344]
[1723792805691,16.1383,144.28,144.23,26.9332]
[1723792806209,6.9314,144.27,144.23,26.9333]
[1723792807703,10.32,144.29,144.25,20.0]
[1723792808108,16.3569,144.31,144.25,20.0]
[1723792808303,16.3569,144.31,144.23,2.44498524]
[1723792808304,23.2864,144.31,144.27,26.9311]
[1723792808997,23.2864,144.31,144.27,20.0]
[1723792809325,23.2864,144.31,144.26,6.9317]
[1723792809326,6.93,144.3,144.26,6.9317]
[1723792810215,6.93,144.3,144.25,9.37656885]
[1723792810394,6.93,144.3,144.25,6.9323]
[1723792810596,17.25,144.3,144.25,6.9323]
[1723792811120,6.9305,144.29,144.25,6.9323]
[1723792811292,10.32,144.28,144.21,30.80354865]
[1723792811628,0.12549,144.27,144.23,26.933]
[1723792811797,17.2511,144.28,144.24,9.3774485]
[1723792811998,17.2511,144.28,144.25,2.08212778]
[1723792812217,17.2511,144.28,144.24,6.9328]
[1723792812399,17.2511,144.28,144.25,2.08213632]
[1723792812602,17.2511,144.28,144.24,6.9328]
[1723792812813,17.2511,144.28,144.25,2.08211357]
[1723792813129,17.2511,144.28,144.24,6.9328]
[1723792813292,17.2511,144.28,144.25,2.08209925]
[1723792813494,10.32,144.26,144.23,6.48238405]
[1723792813695,17.2519,144.26,144.24,2.08212386]
[1723792813902,6.9315,144.27,144.23,6.9333]
[1723792814105,6.9315,144.27,144.24,2.08222677]
[1723792814306,6.9315,144.27,144.23,6.9333]
[1723792814507,6.9315,144.27,144.24,2.08227376]
[1723792814708,6.9315,144.27,144.23,6.9333]
[1723792815306,6.9315,144.27,144.24,2.08223035]
[1723792815500,6.9315,144.27,144.23,6.9333]
[1723792815704,17.2511,144.28,144.24,9.01488244]
[1723792816029,17.2511,144.28,144.25,2.08218244]
[1723792816235,0.12549,144.27,144.23,6.9332]
[1723792816522,7.05689,144.27,144.24,2.08219015]
[1723792816735,17.251,144.28,144.25,2.08219015]
[1723792816916,17.251,144.28,144.23,26.9332]
[1723792817228,17.251,144.28,144.24,8.56498381]
[1723792817427,17.251,144.28,144.25,2.08210166]
[1723792817595,6.9306,144.29,144.24,6.9327]
[1723792817796,6.9306,144.29,144.25,8.56470351]
[1723792817996,6.9306,144.29,144.26,2.08207588]
[1723792818300,6.9306,144.29,144.24,17.48787696]
[1723792818600,10.32,144.32,144.28,26.9309]
[1723792818796,10.32,144.32,144.28,20.0]
[1723792818797,17.2491,144.32,144.28,20.0]
[1723792819610,6.1535,144.34,144.28,26.9308]
[1723792819611,6.9286,144.33,144.28,26.9308]
[1723792819809,6.9281,144.34,144.3,20.0]
[1723792820812,10.32,144.37,144.32,20.0]
[1723792821017,6.9274,144.36,144.32,20.0]
[1723792821232,6.9274,144.36,144.31,6.929]
[1723792821601,6.9276,144.35,144.31,6.929]
[1723792822735,6.9276,144.35,144.3,26.9298]
[1723792823040,6.9276,144.35,144.31,2.08107965]
[1723792823254,6.9276,144.35,144.3,26.9298]
[1723792823412,6.9276,144.35,144.31,2.08107903]
[1723792823614,6.9276,144.35,144.31,45.0]
[1723792823926,0.12549,144.36,144.31,51.9294]
[1723792823927,6.9272,144.36,144.31,51.9294]
[1723792824157,6.9272,144.36,144.32,6.929]
[1723792824351,6.9272,144.36,144.31,51.9294]
[1723792824651,6.9276,144.35,144.31,6.9294]
[1723792825529,6.9272,144.36,144.33,20.0]
[1723792825725,6.9272,144.36,144.32,45.0]
[1723792826621,6.9272,144.36,144.33,20.0]
[1723792827532,6.9272,144.36,144.32,45.0]
[1723792829463,6.9272,144.36,144.33,20.0]
[1723792829949,6.9272,144.36,144.32,45.0]
[1723792831146,6.9272,144.36,144.33,20.0]
[1723792831576,6.9272,144.36,144.32,45.0]
[1723792832948,6.9272,144.36,144.33,20.0]
[1723792833458,6.9272,144.36,144.32,45.0]
[1723792833835,6.9272,144.36,144.33,20.0]
[1723792834231,6.9272,144.36,144.32,45.0]
[1723792834743,6.9272,144.36,144.33,20.0]
[1723792835638,6.9272,144.36,144.32,45.0]
[1723792836863,25.84,144.38,144.3,26.9298]
[1723792836864,6.9277,144.35,144.3,26.9298]
[1723792837474,6.9277,144.35,144.3,6.9298]
[1723792840437,6.9284,144.34,144.29,6.9304]
[1723792840780,6.9284,144.34,144.29,26.9304]
[1723792841538,7.05309,144.35,144.31,20.0]
[1723792841775,6.9276,144.35,144.31,20.0]
[1723792842854,6.9276,144.35,144.3,51.9295]
[1723792843667,6.9286,144.33,144.29,20.0]
[1723792844548,6.9286,144.33,144.29,26.9303]
[1723792845263,6.9282,144.34,144.29,26.9303]
[1723792845769,0.12549,144.33,144.28,6.9308]
[1723792845982,0.12549,144.33,144.29,20.0]
[1723792846140,7.05409,144.33,144.29,20.0]
[1723792848450,7.05409,144.33,144.28,6.9308]
[1723792848658,7.05409,144.33,144.3,20.0]
[1723792849065,6.9281,144.34,144.3,20.0]
[1723792852472,6.9281,144.34,144.3,26.93]
[1723792853571,6.9281,144.34,144.3,20.0]
[1723792856595,6.9276,144.35,144.31,45.0]
[1723792856767,10.34,144.36,144.33,20.0]
[1723792856768,6.9272,144.36,144.33,20.0]
[1723792857779,47.7441,144.41,144.31,51.9295]
[1723792857780,6.3841,144.41,144.36,20.0]
[1723792857953,6.9262,144.38,144.33,6.9284]
[1723792858276,6.9262,144.38,144.35,20.0]
[1723792859173,22.6268,144.39,144.35,20.0]
[1723792859704,6.9253,144.4,144.37,20.0]
[1723792860784,6.9253,144.4,144.35,26.9272]
[1723792861084,17.2672,144.36,144.31,29.37093896]
[1723792861294,6.9276,144.35,144.32,6.47872868]
[1723792861594,15.5478,144.38,144.3,6.93]
[1723792861595,6.9286,144.33,144.3,20.0]
[1723792861958,17.2682,144.34,144.3,20.0]
[1723792862363,17.2682,144.34,144.31,2.08123854]
[1723792862567,17.2682,144.34,144.29,6.9304]
[1723792862776,17.2682,144.34,144.3,47.08127161]
[1723792862959,17.2682,144.34,144.3,65.0]
[1723792863460,17.2682,144.34,144.31,2.08124826]
[1723792863791,17.2682,144.34,144.3,65.0]
[1723792863958,17.2682,144.34,144.31,2.08124689]
[1723792864165,17.2682,144.34,144.3,65.0]
[1723792864379,17.2682,144.34,144.31,2.08126508]
[1723792864588,17.2682,144.34,144.3,65.0]
[1723792864793,17.2682,144.34,144.31,2.08126571]
[1723792864794,6.9286,144.33,144.31,2.08126571]
[1723792864957,6.9286,144.33,144.27,33.61977647]
[1723792864958,6.929,144.32,144.29,2.44316353]
[1723792865158,6.929,144.32,144.3,2.08148206]
[1723792865159,17.269,144.32,144.3,2.08148206]
[1723792865481,25.8878,144.38,144.34,20.0]
[1723792865781,25.8878,144.38,144.35,2.08113512]
[1723792865987,25.8878,144.38,144.34,20.0]
[1723792866286,25.8878,144.38,144.35,2.08083368]
[1723792866486,25.8878,144.38,144.33,6.9282]
[1723792866694,25.8878,144.38,144.34,2.080693]
[1723792866986,25.8878,144.38,144.35,22.080693]
[1723792867201,6.9267,144.37,144.35,20.0]
[1723792868260,6.9267,144.37,144.33,13.40680593]
[1723792868453,6.9267,144.37,144.34,2.08074032]
[1723792868691,6.9267,144.37,144.35,2.08074032]
[1723792868899,6.9267,144.37,144.33,6.9282]
[1723792869191,6.9267,144.37,144.34,2.08074032]
[1723792869360,6.9267,144.37,144.35,2.08074032]
[1723792869560,6.9267,144.37,144.33,6.9282]
[1723792869761,6.9267,144.37,144.34,2.08073898]
[1723792870076,6.9267,144.37,144.35,2.08073898]
[1723792870274,6.9267,144.37,144.32,37.33259229]
[1723792870495,6.9267,144.37,144.33,56.00168997]
[1723792870791,6.9276,144.35,144.34,2.08073898]
[1723792871007,6.9276,144.35,144.3,10.54881102]
[1723792871008,10.46549,144.35,144.3,10.54881102]
[1723792871360,17.39309,144.35,144.31,9.26897311]
[1723792871600,17.39309,144.35,144.3,6.9299]
[1723792871601,6.9281,144.34,144.3,6.9299]
[1723792871893,17.269,144.32,144.28,20.0]
[1723792872200,6.9295,144.31,144.29,8.92338838]
[1723792872379,6.9295,144.31,144.27,10.55141007]
[1723792872687,10.34,144.3,144.28,19.47498251]
[1723792872893,17.27,144.3,144.29,6.48043623]
[1723792873097,6.9305,144.29,144.25,10.55141007]
[1723792873268,17.39559,144.3,144.26,39.47608908]
[1723792873462,17.2701,144.3,144.27,8.92467901]
[1723792873690,17.2701,144.3,144.28,6.48115405]
[1723792873997,17.2691,144.32,144.27,17.83165835]
[1723792874292,6.9295,144.31,144.28,8.92419437]
[1723792874493,10.34,144.3,144.27,2.4432808]
[1723792874722,17.27,144.3,144.28,6.48101224]
[1723792875012,17.27,144.3,144.27,45.0]
[1723792875196,17.27,144.3,144.28,6.48101766]
[1723792875509,33.4876,144.33,144.27,45.0]
[1723792875510,6.9296,144.31,144.27,45.0]
[1723792875697,17.2704,144.3,144.28,8.92409573]
[1723792875899,10.34,144.3,144.26,10.55247852]
[1723792876078,10.34,144.3,144.27,8.92446443]
[1723792876406,10.34,144.3,144.26,10.55247852]
[1723792876572,10.34,144.3,144.27,8.9245292]
[1723792876904,6.9304,144.29,144.24,30.55247852]
[1723792877117,6.9304,144.29,144.25,8.92601634]
[1723792877405,6.9304,144.29,144.26,2.08179524]
[1723792877704,6.9304,144.29,144.27,2.08179524]
[1723792877883,17.27,144.3,144.26,20.0]
[1723792878088,17.27,144.3,144.27,2.081794]
[1723792878285,17.27,144.3,144.26,20.0]
[1723792878488,17.27,144.3,144.27,2.081794]
[1723792878790,17.27,144.3,144.26,20.0]
[1723792879316,17.27,144.3,144.27,2.08179818]
[1723792879605,17.27,144.3,144.26,26.9318]
[1723792879788,17.27,144.3,144.27,2.0817485]
[1723792879983,17.27,144.3,144.26,26.9318]
[1723792880173,17.27,144.3,144.27,2.08174963]
[1723792880381,17.27,144.3,144.26,26.9318]
[1723792880688,17.27,144.3,144.27,2.0817668]
[1723792880894,17.27,144.3,144.26,26.9318]
[1723792881095,17.27,144.3,144.27,2.0817668]
[1723792881410,17.27,144.3,144.26,26.9318]
[1723792881984,17.27,144.3,144.27,2.08174859]
[1723792882309,6.9305,144.29,144.26,20.0]
[1723792883003,10.34,144.3,144.26,20.0]
[1723792883207,17.2701,144.3,144.26,20.0]
[1723792883416,16.1657,144.33,144.29,20.0]
[1723792883715,23.0943,144.33,144.3,45.0]
[1723792883876,23.0943,144.33,144.29,20.0]
[1723792885504,23.0943,144.33,144.28,13.41162581]
[1723792885690,23.0943,144.33,144.29,47.08137467]
[1723792886005,23.0943,144.33,144.29,45.0]
[1723792886575,23.0943,144.33,144.27,2.44391936]
[1723792886576,10.34,144.3,144.26,2.44391936]
[1723792886902,17.27,144.3,144.27,22.08159833]
[1723792887099,6.9304,144.29,144.28,2.08159833]
[1723792887305,6.9304,144.29,144.25,26.9322]
[1723792887475,17.2701,144.3,144.27,20.0]
[1723792890901,10.34,144.3,144.27,20.0]
[1723792892289,17.27,144.3,144.26,6.9318]
[1723792892504,17.27,144.3,144.27,20.0]
[1723792894905,17.27,144.3,144.26,2.08173839]
[1723792895213,17.27,144.3,144.26,45.0]
[1723792895594,17.27,144.3,144.25,26.9322]
[1723792895794,17.27,144.3,144.26,2.08176366]
[1723792896005,17.27,144.3,144.25,26.9322]
[1723792896208,17.27,144.3,144.26,2.08176366]
[1723792896394,17.27,144.3,144.25,26.9322]
[1723792896608,17.27,144.3,144.26,2.08176428]
[1723792896791,17.27,144.3,144.25,26.9322]
[1723792897118,0.12549,144.32,144.23,13.71423923]
[1723792897119,6.9316,144.27,144.23,13.71423923]
[1723792897339,6.9316,144.27,144.22,32.85266669]
[1723792897340,6.9316,144.27,144.22,26.48181566]
[1723792897495,6.9316,144.27,144.23,22.0820676]
[1723792897695,6.9316,144.27,144.23,20.0]
[1723792897913,17.2711,144.28,144.23,26.933]
[1723792898124,17.2711,144.28,144.25,20.0]
[1723792899401,6.9306,144.29,144.25,20.0]
[1723792900012,6.931,144.28,144.25,20.0]
[1723792901339,17.2703,144.3,144.27,20.0]
[1723792901919,6.9305,144.29,144.27,20.0]
[1723792902504,17.271,144.28,144.24,6.9327]
[1723792903201,6.9315,144.27,144.22,26.9337]
[1723792903401,12.07306529,144.26,144.21,6.9339]
[1723792903621,12.07306529,144.26,144.22,2.08213726]
[1723792903834,10.34,144.26,144.21,26.9339]
[1723792904038,10.34,144.26,144.22,2.08213788]
[1723792904241,17.272,144.26,144.21,26.9339]
[1723792904533,17.272,144.26,144.23,20.0]
[1723792906240,0.12549,144.31,144.25,20.0]
[1723792906241,6.931,144.28,144.25,20.0]
[1723792906907,17.2703,144.3,144.25,26.9323]
[1723792907138,10.34,144.3,144.25,26.9323]
[1723792908043,10.34,144.3,144.23,2.0819941]
[1723792908044,6.9306,144.29,144.24,9.0146941]
[1723792908200,6.931,144.28,144.24,6.9327]
[1723792908619,6.931,144.28,144.23,20.0]
[1723792908949,6.931,144.28,144.22,45.0]
[1723792909151,6.931,144.28,144.23,22.0821001]